[Event "U.S. Chess Championship 2022"]
[Site "Chess.com"]
[Date "2022.10.10"]
[Round "6"]
[White "Moradiabadi, Elshan"]
[Black "Caruana, Fabiano"]
[Result "0-1"]
[WhiteElo "2534"]
[BlackElo "2763"]
[ECO "B46"]
[EventDate "2022.??.??"]
[Annotator "rafael"]
[PlyCount "88"]
[Beauty "7354057758218"]
[EventType "swiss"]
[EventRounds "11"]
[TimeControl "5400+30"]

{Chess authors like to use a catchphrase stating that a chess player \"made the game look easy.\" This certainly cannot be said of Caruana's play in the present game. Virtually all of his moves were deep and difficult to understand.} 
1.e4 c5 2.Nf3 e6 3.d4 cxd4 4.Nxd4 Nc6 5.Nc3 ( 5.Bf4 {This move was played by GM Jan-Krzysztof Duda in the Candidates Tournament and is a dangerous line with not so much theory behind it.} ) 5...a6 {The most popular move is 5...Qc7, but my favorite has always been 5...a6. I've played this position so many times with Black that I've lost count.} 6.Bf4 {White has many different attempts here. This move is only the eighth most popular.} 6...d6 7.Bg3 ( 7.Nxc6 {This was played in an important game played by the World Champion Magnus Carlsen.} 7...bxc6 8.Qd2 e5 9.Bg5 Nf6 10.O-O-O h6 11.Bh4 Be6 {Black is fine and later achieved an impressive win. Tari - Carlsen, World Cup 2021.} ) 7...Be7 8.Be2 Bd7 {This move defends the c6-knight and prepares the development of the kingside.} ( 8...Nf6 {is bad due to} 9.Nxc6 bxc6 10.e5 $1 {with an advantage for White.} ) 9.Nb3 ( 9.O-O Nf6 {and Black manages to complete development without any problems.} ) 9...e5 $5 {A new move and the first of a series of extremely difficult moves that Caruana will play in this game. If I had a thousand lives, in none of them would I have ever played this move, as my prejudice against weakening the d5-square is far too great. Naturally, Caruana has a superior understanding of chess and knows quite well the risks of this move.} ( 9...Qc7 {is a much easier move to understand. Black simply defends the d6-pawn. This was played in Prraneeth - Puranik, Biel 2022.} ) 10.Bg4 $2 {Probably surprised by Black's daring strategy, Moradiabadi immediately makes a mistake.} ( 10.Nd5 {is the natural move, and I don't see any problems with it.} 10...Be6 $1 ( 10...Nf6 11.Nxf6+ Bxf6 12.Qxd6 Be7 13.Qd2 {and Black doesn't have enough compensation for the pawn.} ) 11.f3 $5 Nf6 12.c4 a5 {With a slightly more comfortable position for White, but with a lot of life on the board.} ) 10...Bxg4 11.Qxg4 h5 $1 {Advancing the pawns in front of the king is always difficult, although here, this move is quite tempting, as the white bishop is uncomfortable on g3.} 12.Qh3 h4 13.f3 {Taking advantage of the pin to save the bishop.} 13...Bg5 $1 14.O-O Rh6 $1 {With his last two fantastic moves, Caruana uniquely activates both the bishop and the rook, even at the cost of giving up his castling rights. We see Caruana breaking a number of classical concepts in this game, which makes it particularly interesting.} 15.Bf2 Nf6 {Perhaps the most important aspect of the position is the poor placement of the queen on h3, a consequence of White's 10th move.} 16.Rad1 Qc7 17.Nc1 Kf8 18.a3 ( 18.N1e2 {is better.} ) 18...Na5 $1 {Another clinical move. It's true that my computer suggests 18...Nd8 here, heading for e6, but we'd better leave that kind of move to the machines.} 19.Nd3 Nc4 20.Nb4 $2 {Moradiabadi enters desperation mode, but that was not necessary. 20. Rfe1 was possible, but to play that, you need to see a fantastic machine-like resource.} ( 20.Rfe1 Nxb2 21.f4 $3 {An incredible move that complicates the game. The idea is to bring the queen into the game.} 21...Nxd1 ( 21...exf4 $4 22.Nxb2 {and the queen protects the c3-knight.} ) 22.fxg5 Nxc3 23.gxh6 {with complete mess over the board.} ) 20...Qc8 $1 {Another good and difficult move. I would never have resisted taking on b2 right away.} ( 20...Nxb2 21.Ncd5 Nxd5 22.Nxd5 Qc8 23.Rb1 Qxh3 24.gxh3 Nc4 25.Rxb7 Nd2 26.Rd1 Nxf3+ 27.Kg2 Nd2 {Truth be told, Black also has an advantage in this position.} ) 21.Qxc8+ Rxc8 22.Na4 ( 22.Nbd5 Nxd5 23.Nxd5 Nxb2 24.Rb1 Rxc2 {and the rook protects the knight.} ) 22...a5 $1 {One more accurate move, taking away the protection of c2.} 23.Na2 ( 23.Nd5 Nxd5 24.Rxd5 Ne3 25.Bxe3 Bxe3+ 26.Kh1 Rxc2 27.Rxa5 Rg6 $1 {and the rook finally shows its worth $1} ) ( 23.Nd3 Ne3 ) 23...Ne3 {Now Black wins material.} 24.N2c3 ( 24.Bxe3 {is totally hopeless after} 24...Bxe3+ 25.Kh1 Rxc2 26.Rxd6 Rg6 ) 24...Nxd1 25.Rxd1 Rc6 26.Kf1 Bf4 ( 26...b5 $1 {is even better.} 27.Nxb5 Rxc2 28.Nxd6 Nh5 $1 {with an easy win.} ) 27.h3 Kg8 {Another move that I have a hard time understanding, but this one I'm not sure is the best.} ( 27...b5 28.Nxb5 Rxc2 29.Nxd6 Ne8 $1 {Not an easy move to find.} 30.Nf5 Rhc6 31.Nxh4 g6 $1 {and the computer indicates that Black is winning.} ) 28.Bb6 $6 ( 28.Nb6 {is a better try.} ) 28...Rg6 ( 28...Nh5 $1 {is more accurate.} 29.Bxa5 Be3 {with a winning position.} ) 29.Bxa5 Be3 ( 29...Nh5 $1 ) 30.Rd3 ( 30.Bd8 $1 {This machine-like move, with the idea of eliminating the f6-knight, is the best chance.} ) 30...Bd4 31.Bd8 b5 $1 {Now white's position collapses.} 32.Bxf6 ( 32.Nxb5 Rxc2 ) 32...gxf6 33.Nd5 Rxc2 $1 {This is the idea. Black returns the exchange to capture White's pawns.} 34.Ne7+ Kh7 35.Nxg6 Kxg6 36.Nc3 Rf2+ 37.Ke1 Rxb2 38.Nd5 Bc5 39.f4 Rxg2 40.Ne7+ Kh5 41.fxe5 fxe5 42.Rf3 Rg3 43.Rf5+ Kh6 44.Rf6+ Kg7 {A difficult and beautiful game by Caruana.} 0-1

[Event "U.S. Chess Championship 2022"]
[Site "Chess.com"]
[Date "2022.10.13"]
[Round "8"]
[White "Moradiabadi, Elshan"]
[Black "Robson, Ray"]
[Result "0-1"]
[WhiteElo "2534"]
[BlackElo "2690"]
[ECO "C65"]
[EventDate "2022.??.??"]
[Annotator "rafael"]
[PlyCount "76"]
[Beauty "7766798237727"]
[EventType "swiss"]
[EventRounds "11"]
[TimeControl "5400+30"]

1.e4 e5 2.Nf3 Nc6 3.Bb5 Nf6 {Robson has a very dynamic and aggressive style, his games tend to attract the attention of spectators. Considering this, it's curious that he has the Berlin Defense in his repertoire, such a solid defense. Luckily, that didn't stop him from creating one of his usual entertaining attacks.} 4.d3 Bc5 5.Bxc6 dxc6 6.Nbd2 Nd7 7.Nc4 f6 8.Be3 ( 8.Bd2 {was played by Carlsen in a recent online tournament.} 8...Nb6 9.Na5 Qe7 {Carlsen - Navara, Charity Cup 2022.} ) 8...Bxe3 9.Nxe3 Nc5 10.O-O Ne6 ( 10...O-O {was played in Duda - Grischuk, World Cup 2021.} ) 11.c3 {This move was tested in a few email games. The intention is unequivocal: dominate the center with d3-d4.} 11...c5 {Avoiding White's plan.} 12.Qc2 b6 13.Rfd1 Qd7 {A new move.} ( 13...O-O {This has been played before.} ) 14.a4 $5 {Truth be told, White doesn't have much. Black's position is very solid, with good central control. This is the best way to create problems.} 14...Ba6 ( 14...a5 $2 {It's important to note that this natural move is a mistake. The point is that Black loses the option to drive the white knight out of d5 with the c7-c6 move.} 15.d4 $1 exd4 16.cxd4 cxd4 17.Nd5 {and White has the initiative.} ) ( 14...O-O 15.d4 {leads to a drawn position after} ( 15.a5 Ba6 $1 {and Black is fine.} ) 15...cxd4 16.cxd4 exd4 17.Nxd4 Nxd4 18.Qc4+ Qf7 19.Qxd4 f5 {and all pieces are about to be exchanged.} ) 15.b4 $5 {Dynamic and interesting play.} 15...Rd8 ( 15...cxb4 {is also possible.} 16.d4 $5 ( 16.cxb4 Rd8 {is not so dangerous for Black.} ) 16...exd4 17.Nxd4 bxc3 {White's position looks promising, but the computer indicates equality.} ) 16.b5 Bb7 17.Qb3 {A logical move, preparing the a5 advance.} ( 17.Rd2 O-O 18.Rad1 {is another natural plan, preparing d4.} ) 17...Qf7 ( 17...O-O 18.a5 ( 18.d4 $6 Bxe4 19.dxc5 Qf7 {is advantageous for Black.} ) 18...Kh8 19.axb6 axb6 20.Ra7 Rb8 {with a balanced position.} ) ( 17...a5 $5 ) 18.g3 $6 {This move unnecessarily weakens the light squares. It's better to follow the normal plan.} ( 18.a5 ) 18...a5 $1 {A very precise move, stopping White's initiative on the queenside.} 19.bxa6 Bxa6 20.a5 b5 $1 21.Nf5 O-O ( 21...g6 {deserved consideration, preventing White's next move.} 22.Nh6 Qe7 ) 22.Qc2 $2 {From now on, White loses control of the game.} ( 22.d4 $1 {This move is necessary to fight for equality. It's scary to go into an endgame with two passed pawns for the opponent, but White has enough resources to defend.} 22...cxd4 23.cxd4 exd4 24.N3xd4 Nxd4 25.Nxd4 c5 26.Qxf7+ Kxf7 ( 26...Rxf7 27.Ne6 Rc8 28.Rd6 Ra7 29.Rc1 c4 30.Rb6 {and the pawns are controlled.} ) 27.Nb3 {with good chances of a draw.} ) 22...Kh8 ( 22...Qh5 {is also pretty good.} ) 23.d4 {Perhaps this hastens the defeat, but White has to do something.} 23...Qh5 24.d5 Nf4 $1 25.N5h4 $2 {This move loses on the spot.} ( 25.Ne1 {is a better try, although Black is much better after} 25...Nh3+ 26.Kg2 g6 {followed by f5.} ) 25...g5 $1 26.gxf4 gxh4 27.Qe2 exf4 {White's king has no refuge, and the bishop begins to play an important role in the attack.} 28.Kf1 ( 28.Kh1 b4 $1 {decides the game.} ) 28...Rg8 ( 28...Bc8 {is also tempting, but the move played is even better.} ) 29.c4 {Desperation, but there is no longer any hope.} 29...bxc4 30.Ra3 Rb8 ( 30...Rde8 {also wins.} ) 31.Rc3 Qg4 32.Ke1 Rge8 33.Nd2 Qg1+ 34.Qf1 Qg7 $1 {An elegant move. The queen backs off just for a moment.} 35.Rdc1 f5 $1 36.f3 Qd4 {Back to the center stage $1} 37.Qf2 Rg8 38.Qxh4 Rb2 {Yet another convincing victory for Robson, who remains on the heels of tournament leader Caruana.} 0-1

[Event "U.S. Women's Chess Championship 2022"]
[Site "Chess.com"]
[Date "2022.10.14"]
[Round "9"]
[White "Cervantes Landeiro, Thalia"]
[Black "Foisor, Sabina Francesca"]
[Result "1-0"]
[WhiteElo "2272"]
[BlackElo "2203"]
[ECO "D46"]
[EventDate "2022.??.??"]
[Annotator "rafael"]
[PlyCount "95"]
[Beauty "7148436211739"]
[EventType "game"]
[TimeControl "5400+30"]

1.d4 d5 2.c4 c6 3.Nf3 Nf6 4.e3 e6 5.Bd3 Nbd7 6.Nc3 Bd6 {This is a not very popular variation of the Semi-Slav Defense.} ( 6...dxc4 {is better.} ) 7.O-O O-O 8.e4 $1 dxe4 {It's difficult to say which pawn Black should capture. The move played is a little passive.} ( 8...dxc4 9.Bxc4 e5 {With a small advantage for White. There's a lot of theory here.} ) 9.Nxe4 Nxe4 10.Bxe4 Nf6 ( 10...c5 {is more accurate.} ) 11.Bc2 c5 12.dxc5 {This is not the most dangerous move for Black. There are two very promising alternatives.} ( 12.Qd3 h6 13.Rd1 Qc7 14.dxc5 Bxc5 15.b4 $1 {followed by the development of the bishop on b2 with a strong initiative. Krasenkow-Krzyzanowski, Warsaw 2020.} ) ( 12.Bg5 h6 13.Bh4 cxd4 14.Qd3 Re8 15.Nxd4 {with advantage for White. Andreikin-Klukin Chess.com 2022.} ) 12...Bxc5 13.Qe2 h6 $6 {Too slow. It's best to start queenside development right away.} ( 13...b6 ) 14.Bf4 $6 ( 14.Ne5 $1 {leads to a very strong attack with a maneuver similar to the one played in the game.} 14...b6 15.Rd1 Qc7 16.Rd3 ) 14...b6 15.Rad1 Qe7 16.Ne5 Bb7 17.Rd3 {Only this is a new move. Opening theory is really far advanced in some variations. This move is very natural, taking the rook to the attack.} 17...Be4 18.Rh3 Bxc2 19.Qxc2 Qb7 $2 {This move allows the typical sacrifice on h6 in circumstances favorable to White.} ( 19...Nd7 {doesn't solve the problems either.} 20.Nxd7 Qxd7 21.Rg3 ( 21.b4 $5 {is even better, according to the machine.} ) ( 21.Bxh6 {is premature:} 21...gxh6 22.Rd1 Qe7 23.Rxh6 f5 24.Rd3 Rf7 {and the attack can apparently be parried.} ) 21...Kh8 22.Qc1 {with strong pressure.} ) ( 19...Rfc8 $5 {is an interesting attempt, preparing the king's escape.} ) 20.Qc1 $2 ( 20.Bxh6 $1 {wins mathematically:} 20...gxh6 21.Qd2 $1 {An important move.} ( 21.Rxh6 $2 Qe4 ) 21...Nh7 22.b4 $1 ( 22.Qxh6 {is not so clear, since Black has an incredible escape after} 22...f6 23.Rg3+ Ng5 24.h4 Qh7 $1 ) 22...f6 ( 22...Be7 23.Qxh6 Qe4 24.f3 Qf5 25.g4 Qc2 26.Rc1 {wins.} ) 23.Rg3+ Ng5 24.bxc5 fxe5 25.h4 {White recovers material and the attack continues.} ) 20...h5 ( 20...Qe4 $2 21.Bxh6 $1 Qxe5 22.Bxg7 ) ( 20...Nh7 {is more solid.} ) 21.Bh6 {A flashy move and almost irresistible for any human, but the computer is not impressed.} ( 21.Bg5 Ne4 22.Nd3 $1 {with an advantage.} ) ( 21.Bd2 {is the machine's favorite move, with the idea of placing the bishop on c3. This is a very difficult move.} ) 21...Ne4 $1 {For now Foisor defends very well.} ( 21...gxh6 $2 22.Qxh6 {with a decisive attack.} ) 22.Rxh5 f6 $1 23.Ng4 Qf7 $1 ( 23...gxh6 $2 24.Nxh6+ Kg7 25.Nf5+ $1 exf5 26.Qh6+ Kf7 27.Qh7+ {winning the queen.} ) 24.Rh4 Rfd8 $2 {This move loses.} ( 24...Qg6 $1 {The situation is not so clear after} 25.Be3 Rad8 {White is a pawn up, but her pieces are a bit clumsy, and Black is no longer going to be mated.} ) 25.Bxg7 $1 Qxg7 ( 25...Kxg7 26.Qh6+ Kg8 27.Qh8# ) 26.Nh6+ Kf8 27.Rxe4 {The game is over. White is two pawns up, and the attack persists.} 27...e5 28.Rg4 Qh7 29.Rg8+ Ke7 30.Rg7+ $1 Qxg7 31.Nf5+ {The rest is easy.} 31...Kf7 32.Nxg7 Kxg7 33.Qc3 a5 34.Qg3+ Kf7 35.Qf3 Ra7 36.Rd1 Rxd1+ 37.Qxd1 Ke7 38.h4 Rd7 39.Qe2 Rd4 40.g3 Ke6 41.h5 Kf5 42.Kg2 Kg5 43.Kh3 Kh6 44.Qf3 Kg5 45.g4 Rf4 46.Qb7 Rxf2 47.Kg3 Kh6 48.Qf7 1-0

[Event "European Chess Club Cup 2022"]
[Site "Mayrhofen"]
[Date "2022.10.04"]
[Round "2"]
[White "Carlsen, Magnus"]
[Black "Naumann, Alexander"]
[Result "1-0"]
[WhiteElo "2856"]
[BlackElo "2513"]
[ECO "C45"]
[EventDate "2022.??.??"]
[Annotator "rafael"]
[PlyCount "59"]
[Beauty "8251705923594"]
[EventType "team-tourn"]
[TimeControl "5400+30"]

1.e4 e5 2.Nf3 Nc6 3.d4 exd4 4.Nxd4 Nf6 5.Nxc6 bxc6 6.e5 Qe7 7.Qe2 Nd5 8.Nd2 $5 {This isn't the most popular move, but it was played a few days ago by Erigaisi in a rapid online game, which certainly hasn't escaped Carlsen's team's attention.} 8...Nf4 $5 ( 8...g6 {This is the main move. The aforementioned game followed} 9.c4 Nf4 10.Qe3 Ne6 11.b3 Bg7 12.Bb2 O-O 13.Ne4 {and Erigaisi later won this complicated position against Le Quang Liem.} ) 9.Qe3 ( 9.Qe4 {is an important alternative. This prevents Black's next move, but the queen can become a target on e4.} 9...Ng6 10.f4 ( 10.Nf3 $6 d5 $1 {gives Black good counterplay.} ( 10...f6 $6 {Surprisingly, this is a mistake. White gets a lot of compensation after} 11.Bd2 $1 fxe5 12.O-O-O ) ) 10...d5 11.Qa4 Qc5 12.Nf3 {with chances for both sides.} ) 9...Nd5 ( 9...Ng6 $6 {is weaker with the queen on e3.} 10.Nf3 ) 10.Qe4 f6 ( 10...Nb4 $5 {is a serious alternative. Black got the upper hand after} 11.Nf3 $6 d5 $1 12.Qe2 Bf5 13.Nd4 Nd3+ $1 {in De la Riva Aguado - Linster, Monte Carlo 2013.} ) 11.c4 $146 {A new move, played after a long think. This indicates that Carlsen was out of his preparation. His move is an interesting pawn sacrifice.} ( 11.exf6 Nxf6 12.Qxe7+ Bxe7 13.Bd3 O-O 14.O-O d5 {and the position is equal. Fier-Gupta, Cappelle la Grande 2014.} ) 11...Nb4 12.Kd1 ( 12.a3 $2 {There is no time to drive the knight away.} 12...d5 $1 {and Black wins.} 13.exd6 Qxe4+ 14.Nxe4 Nc2+ ) 12...Qxe5 13.a3 Qxe4 14.Nxe4 Na6 15.b4 {Carlsen's idea is very interesting. In exchange for the pawn, he left the a6-knight out of play. If White manages to complete his development with Bd3, Bb2, and Re1, his initiative can make a big difference.} 15...c5 $6 {An inaccuracy because now Black loses the chance to play d7-d5, an important move to give his pieces a little more life. Of course, this is easy to say with the computer on, but the position is very difficult to play for a human.} ( 15...Nb8 $1 16.Bd3 d5 $1 17.Nc3 dxc4 18.Re1+ Kd8 19.Bxc4 Nd7 {This is the best option for Black, even with doubled pawns and the king on d8. Most important is that the knight is alive, something that will not happen in the game. The position is balanced.} ) 16.b5 Bb7 17.Bd3 Nb8 18.Re1 Kf7 19.Nc3 $1 {A deep move, which I really liked. The idea is to prevent Black's development with d6-Nd7. Karpov, the king of prophylaxis, would be proud.} 19...Bd6 ( 19...d6 {doesn't work now because of} 20.Bf5 $1 {and the bishop destroys Black's position.} ) ( 19...Bxg2 20.Bf4 {is much better for White.} ) 20.f4 $1 {Avoiding Be5, even at the cost of another pawn.} 20...Bxg2 {At least now Black has two pawns in exchange for his suffering.} 21.Kc2 g6 $6 {This move weakens the kingside and is the decisive mistake. It would be better to go back with the bishop immediately, but the position is still very difficult to play. After all, how will the b8-knight enter the game $2} ( 21...Bb7 ) 22.Bb2 $1 Bxf4 $6 ( 22...f5 {This is my computer's favorite move, I imagine to avoid White's f4-f5 move. But how can someone open the diagonal after the opponent places a bishop on b2 $2} ) ( 22...Re8 23.Rxe8 Kxe8 24.f5 $1 {and White destroys the pawn structure on the kingside.} ) 23.Re2 $1 {An elegant move. White gets ready to bring the a1-rook into the game.} 23...Bb7 24.Rf1 {The success of Carlsen's strategy. All his pieces are in the game, while Black's queenside is sleeping.} 24...g5 25.h4 $1 d6 26.hxg5 Be5 ( 26...Bxg5 {There are several winning moves here.} 27.Rfe1 ( 27.Be4 ) ( 27.Ne4 ) ) 27.Ne4 Nd7 28.Nxf6 {It's time to reap the rewards.} 28...Nxf6 29.Bxe5 dxe5 30.Rxe5 {The c5-pawn is about to fall, and the position collapses. An excellent game.} ( 30.Rxe5 Rae8 31.Rxc5 ) 1-0